fUSD/lending_fUSD_20250616
["ID","MTS","AMOUNT","RATE_DAILY","PERIOD"]
[366189075,1750104664486,-150.0,0.00016463,2]
[366189076,1750104664496,-150.391,0.00016463,2]
[366189077,1750104664506,-949.202,0.00016463,2]
[366189078,1750104664516,-3333.0,0.00016463,2]
[366189079,1750104664526,-151.30590679,0.00016471,2]
[366189080,1750104664536,-174.82431446,0.00016479,2]
[366189081,1750104664546,-490.0,0.00016484,2]
[366189082,1750104664557,-645.18,0.00016484,2]
[366189083,1750104664567,-651.62,0.00016484,2]
[366189084,1750104664576,-1053.330119,0.00016484,2]
[366189085,1750104664587,-562.92,0.00016484,2]
[366189086,1750104664597,-574.26,0.00016484,2]
[366189087,1750104664606,-1093.44,0.00016484,2]
[366189088,1750104664617,-1941.86,0.00016484,2]
[366189089,1750104664626,-643.88,0.00016484,2]
[366189090,1750104664636,-2719.56,0.00016484,2]
[366189091,1750104664646,-830.48,0.00016484,2]
[366189092,1750104664656,-1357.86,0.00016484,2]
[366189093,1750104664667,-906.95,0.00016484,2]
[366189094,1750104664677,-490.0,0.00016484,2]
[366189095,1750104664687,-490.0,0.00016484,2]
[366189096,1750104664698,-596.59,0.00016484,2]
[366189097,1750104664707,-1302.19,0.00016484,2]
[366189098,1750104664718,-498.26,0.00016484,2]
[366189099,1750104664728,-520.64,0.00016484,2]
[366189100,1750104664739,-3409.01,0.00016484,2]
[366189101,1750104664750,-490.0,0.00016484,2]
[366189102,1750104664759,-490.0,0.00016484,2]
[366189103,1750104664770,-1121.01,0.00016484,2]
[366189104,1750104664780,-490.0,0.00016484,2]
[366189105,1750104664790,-2152.11,0.00016484,2]
[366189106,1750104664801,-490.0,0.00016484,2]
[366189107,1750104664810,-490.0,0.00016484,2]
[366189108,1750104664823,-703.85,0.00016484,2]
[366189109,1750104664833,-490.0,0.00016484,2]
[366189110,1750104664843,-765.88,0.00016484,2]
[366189111,1750104664855,-1293.43,0.00016484,2]
[366189112,1750104664865,-2680.03,0.00016484,2]
[366189113,1750104664875,-1123.57,0.00016484,2]
[366189114,1750104664886,-683.91,0.00016484,2]
[366189115,1750104664897,-496.21,0.00016484,2]
[366189116,1750104664908,-490.0,0.00016484,2]
[366189117,1750104664917,-1265.19,0.00016484,2]
[366189118,1750104664927,-1368.0,0.00016484,2]
[366189119,1750104664936,-539.37,0.00016484,2]
[366189120,1750104664946,-490.0,0.00016484,2]
[366189121,1750104664955,-1681.53,0.00016484,2]
[366189122,1750104664966,-490.0,0.00016484,2]
[366189123,1750104664975,-1900.07,0.00016484,2]
[366189124,1750104664984,-490.0,0.00016484,2]
[366189125,1750104664995,-490.0,0.00016484,2]
[366189126,1750104665004,-490.0,0.00016484,2]
[366189127,1750104665014,-984.88,0.00016484,2]
[366189128,1750104665023,-490.0,0.00016484,2]
[366189129,1750104665033,-1224.37,0.00016484,2]
[366189130,1750104665043,-758.02,0.00016484,2]
[366189131,1750104665054,-762.72,0.00016484,2]
[366189132,1750104665064,-490.0,0.00016484,2]
[366189133,1750104665074,-2062.25,0.00016484,2]
[366189134,1750104665084,-490.0,0.00016484,2]
[366189135,1750104665094,-618.494544,0.00016484,2]
[366189136,1750104665104,-490.0,0.00016484,2]
[366189137,1750104665114,-3168.77,0.00016484,2]
[366189138,1750104665123,-490.0,0.00016484,2]
[366189139,1750104665133,-1028.44,0.00016484,2]
[366189140,1750104665142,-1220.65,0.00016484,2]
[366189141,1750104665152,-490.0,0.00016484,2]
[366189142,1750104665163,-490.0,0.00016484,2]
[366189143,1750104665172,-490.0,0.00016485,2]
[366189144,1750104665182,-490.0,0.00016485,2]
[366189145,1750104665191,-550.79480276,0.00016485,2]
[366189146,1750104665201,-490.0,0.00016485,2]
[366189147,1750104665211,-506.16,0.00016485,2]
[366189148,1750104665221,-490.0,0.00016485,2]
[366189149,1750104665230,-490.0,0.00016485,2]
[366189150,1750104665240,-490.0,0.00016485,2]
[366189151,1750104665250,-490.0,0.00016485,2]
[366189152,1750104665259,-301.36716633,0.00016485,2]
[366189153,1750104665268,-490.0,0.00016485,2]
[366189154,1750104665278,-490.0,0.00016485,2]
[366189155,1750104665287,-698.25,0.00016485,2]
[366189156,1750104665298,-490.0,0.00016485,2]
[366189157,1750104665308,-546.01,0.00016485,2]
[366189158,1750104665317,-490.0,0.00016485,2]
[366189159,1750104665327,-490.0,0.00016485,2]
[366189160,1750104665337,-527.47,0.00016485,2]
[366189161,1750104665347,-490.0,0.00016485,2]
[366189162,1750104665356,-490.0,0.00016485,2]
[366189163,1750104665366,-490.62,0.00016485,2]
[366189164,1750104665376,-490.0,0.00016485,2]
[366189165,1750104665385,-490.0,0.00016485,2]
[366189166,1750104665396,-500.13,0.00016485,2]
[366189167,1750104665407,-747.73,0.00016485,2]
[366189168,1750104665416,-490.0,0.00016485,2]
[366189169,1750104665426,-600.61,0.00016485,2]
[366189170,1750104665436,-506.11,0.00016485,2]
[366189171,1750104665445,-490.0,0.00016485,2]
[366189172,1750104665456,-601.49,0.00016485,2]
[366189173,1750104665466,-490.0,0.00016485,2]
[366189174,1750104665476,-857.07,0.00016485,2]
[366189175,1750104665486,-586.62,0.00016485,2]
[366189176,1750104665495,-490.0,0.00016485,2]
[366189177,1750104665505,-636.95,0.00016485,2]
[366189178,1750104665515,-151.0,0.00016485,2]
[366189179,1750104665525,-490.0,0.00016485,2]
[366189180,1750104665617,-490.0,0.00016485,2]
[366189181,1750104665628,-490.0,0.00016485,2]
[366189182,1750104665639,-490.0,0.00016485,2]
[366189183,1750104665650,-707.95,0.00016485,2]
[366189184,1750104665659,-490.0,0.00016485,2]
[366189185,1750104665669,-219.781068,0.00016485,2]
[366189186,1750104665678,-151.0,0.00016485,2]
[366189187,1750104665688,-565.53,0.00016485,2]
[366189188,1750104665697,-872.23,0.00016485,2]
[366189189,1750104665706,-490.0,0.00016485,2]
[366189190,1750104665716,-519.76,0.00016485,2]
[366189191,1750104665726,-490.0,0.00016485,2]
[366189192,1750104665735,-938.64,0.00016485,2]
[366189193,1750104665745,-490.0,0.00016485,2]
[366189194,1750104665754,-844.56,0.00016485,2]
[366189195,1750104665764,-1137.0,0.00016485,2]
[366189196,1750104665773,-490.0,0.00016485,2]
[366189197,1750104665783,-7450.49,0.00016485,2]
[366189198,1750104665792,-1874.42,0.00016485,2]
[366189199,1750104665802,-635.92,0.00016485,2]
[366189200,1750104665812,-927.76,0.00016485,2]
[366189201,1750104665823,-816.34,0.00016485,2]
[366189202,1750104665832,-846.17,0.00016485,2]
[366189203,1750104665842,-756.05,0.00016485,2]
[366189204,1750104665851,-490.0,0.00016485,2]
[366189205,1750104665861,-1597.18,0.00016485,2]
[366189206,1750104665870,-1713.39,0.00016485,2]
[366189207,1750104665880,-490.0,0.00016485,2]
[366189208,1750104665891,-490.0,0.00016485,2]
[366189209,1750104665902,-490.0,0.00016485,2]
[366189210,1750104665912,-490.0,0.00016485,2]
[366189211,1750104665921,-763.34,0.00016485,2]
[366189212,1750104665931,-690.44,0.00016485,2]
[366189213,1750104665940,-490.0,0.00016485,2]
[366189214,1750104665950,-1198.82,0.00016485,2]
[366189215,1750104665959,-491.05,0.00016485,2]
[366189216,1750104665968,-501.49,0.00016485,2]
[366189217,1750104665977,-643.68,0.00016485,2]
[366189218,1750104665987,-490.0,0.00016485,2]
[366189219,1750104665997,-491.83,0.00016485,2]
[366189220,1750104666008,-490.0,0.00016485,2]
[366189221,1750104666018,-598.64,0.00016485,2]
[366189222,1750104666028,-490.0,0.00016485,2]
[366189223,1750104666038,-490.0,0.00016485,2]
[366189224,1750104666048,-490.0,0.00016485,2]
[366189225,1750104666058,-939.23,0.00016485,2]
[366189226,1750104666068,-1481.01,0.00016485,2]
[366189227,1750104666078,-574.31,0.00016485,2]
[366189228,1750104666088,-490.0,0.00016485,2]
[366189229,1750104666098,-1940.92,0.00016485,2]
[366189230,1750104666108,-151.0,0.00016485,2]
[366189231,1750104666118,-490.0,0.00016485,2]
[366189232,1750104666128,-490.0,0.00016485,2]
[366189233,1750104666138,-490.0,0.00016485,2]
[366189234,1750104666148,-3585.03,0.00016485,2]
[366189235,1750104666158,-151.0,0.00016485,2]
[366189236,1750104666167,-490.0,0.00016485,2]
[366189237,1750104666176,-490.0,0.00016485,2]
[366189238,1750104666186,-490.0,0.00016485,2]
[366189239,1750104666195,-151.0,0.00016485,2]
[366189240,1750104666206,-490.0,0.00016485,2]
[366189241,1750104666216,-1195.37,0.00016485,2]
[366189242,1750104666226,-484.09196968,0.00016485,2]
[366189243,1750104666236,-490.0,0.00016485,2]
[366189244,1750104666246,-3486.61,0.00016485,2]
[366189245,1750104666255,-490.0,0.00016485,2]
[366189246,1750104666264,-490.0,0.00016485,2]
[366189247,1750104666274,-576.66,0.00016485,2]
[366189248,1750104666284,-490.0,0.00016485,2]
[366189249,1750104666294,-1539.45,0.00016485,2]
[366189250,1750104666303,-490.0,0.00016485,2]
[366189251,1750104666313,-343.54329629,0.00016485,2]
[366189252,1750104666323,-8919.71,0.00016485,2]
[366189253,1750104666332,-490.0,0.00016485,2]
[366189254,1750104666341,-490.0,0.00016485,2]
[366189255,1750104666353,-490.0,0.00016485,2]
[366189256,1750104666363,-2373.98,0.00016485,2]
[366189257,1750104666373,-668.88,0.00016485,2]
[366189258,1750104666383,-490.0,0.00016485,2]
[366189259,1750104666395,-490.0,0.00016485,2]
[366189260,1750104666404,-935.48,0.00016485,2]
[366189261,1750104666413,-768.66,0.00016485,2]
[366189262,1750104666423,-490.0,0.00016485,2]
[366189263,1750104666432,-1265.71,0.00016485,2]
[366189264,1750104666442,-799.33,0.00016485,2]
[366189265,1750104666453,-680.87,0.00016485,2]
[366189266,1750104666463,-490.0,0.00016485,2]
[366189267,1750104666473,-490.0,0.00016485,2]
[366189268,1750104666482,-490.0,0.00016485,2]
[366189269,1750104666491,-984.32,0.00016485,2]
[366189270,1750104666501,-490.0,0.00016485,2]
[366189271,1750104666512,-515.93,0.00016485,2]
[366189272,1750104666521,-1507.29,0.00016485,2]
[366189273,1750104666531,-940.17,0.00016485,2]
[366189274,1750104666541,-151.0,0.00016485,2]
[366189275,1750104666551,-490.0,0.00016485,2]
[366189276,1750104666561,-267.854207,0.00016485,2]
[366189277,1750104666571,-490.0,0.00016485,2]
[366189278,1750104666581,-490.0,0.00016485,2]
[366189279,1750104666591,-594.65,0.00016485,2]
[366189280,1750104666601,-574.72,0.00016485,2]
[366189281,1750104666611,-1606.7,0.00016485,2]
[366189282,1750104666621,-7755.07,0.00016485,2]
[366189283,1750104666630,-490.0,0.00016485,2]
[366189284,1750104666640,-490.0,0.00016485,2]
[366189285,1750104666650,-490.0,0.00016485,2]
[366189286,1750104666660,-516.77,0.00016485,2]
[366189287,1750104666669,-490.0,0.00016485,2]
[366189288,1750104666679,-2924.91,0.00016485,2]
[366189289,1750104666688,-1557.21,0.00016485,2]
[366189290,1750104666697,-2844.63,0.00016485,2]
[366189291,1750104666708,-490.0,0.00016485,2]
[366189292,1750104666717,-576.19,0.00016485,2]
[366189293,1750104666727,-490.0,0.00016485,2]
[366189294,1750104666736,-490.0,0.00016485,2]
[366189295,1750104666747,-2142.72,0.00016485,2]
[366189296,1750104666757,-168.170029,0.00016485,2]
[366189297,1750104666766,-517.99,0.00016485,2]
[366189298,1750104666776,-490.0,0.00016485,2]
[366189299,1750104666785,-3747.5,0.00016485,2]
[366189300,1750104666794,-5472.19,0.00016485,2]
[366189301,1750104666808,-490.0,0.00016485,2]
[366189302,1750104666821,-3236.01,0.00016485,2]
[366189303,1750104666830,-1372.71,0.00016485,2]
[366189304,1750104666840,-490.0,0.00016485,2]
[366189305,1750104666850,-151.0,0.00016485,2]
[366189306,1750104666859,-614.91,0.00016485,2]
[366189307,1750104666869,-490.0,0.00016486,2]
[366189308,1750104666878,-703.86,0.00016486,2]
[366189309,1750104666888,-659.31,0.00016486,2]
[366189310,1750104666898,-563.6,0.00016486,2]
[366189311,1750104666909,-617.31,0.00016486,2]
[366189312,1750104666918,-490.0,0.00016486,2]
[366189313,1750104666927,-836.34,0.00016486,2]
[366189314,1750104666936,-490.0,0.00016486,2]
[366189315,1750104666945,-490.0,0.00016486,2]
[366189316,1750104666954,-490.0,0.00016486,2]
[366189317,1750104666964,-631.58,0.00016486,2]
[366189318,1750104666973,-490.0,0.00016486,2]
[366189319,1750104666983,-490.0,0.00016486,2]
[366189320,1750104666992,-523.17,0.00016486,2]
[366189321,1750104667002,-641.57,0.00016486,2]
[366189322,1750104667011,-490.0,0.00016486,2]
[366189323,1750104667020,-490.0,0.00016486,2]
[366189324,1750104667030,-490.0,0.00016486,2]
[366189325,1750104667039,-628.3,0.00016486,2]
[366189326,1750104667048,-333.90408345,0.00016486,2]
[366189327,1750104667057,-490.0,0.00016486,2]
[366189328,1750104667066,-649.97,0.00016486,2]
[366189329,1750104667075,-490.0,0.00016486,2]
[366189330,1750104667085,-607.43,0.00016486,2]
[366189331,1750104667094,-566.4,0.00016486,2]
[366189332,1750104667103,-614.64,0.00016486,2]
[366189333,1750104667112,-490.0,0.00016486,2]
[366189334,1750104667121,-490.0,0.00016486,2]
[366189335,1750104667130,-576.73,0.00016486,2]
[366189336,1750104667139,-868.34,0.00016486,2]
[366189337,1750104667149,-450.07771079,0.00016486,2]
[366189338,1750104667158,-529.35,0.00016486,2]
[366189339,1750104667167,-490.0,0.00016486,2]
[366189340,1750104667176,-618.0,0.00016486,2]
[366189341,1750104667186,-490.0,0.00016486,2]
[366189342,1750104667195,-621.34,0.00016486,2]
[366189343,1750104667204,-689.37,0.00016486,2]
[366189344,1750104667213,-494.88,0.00016486,2]
[366189345,1750104667223,-490.0,0.00016486,2]
[366189346,1750104667232,-490.0,0.00016486,2]
[366189347,1750104667241,-711.91,0.00016486,2]
[366189348,1750104667252,-490.0,0.00016486,2]
[366189349,1750104667261,-193.16,0.00016486,2]
[366189350,1750104667270,-516.15,0.00016486,2]
[366189351,1750104667280,-640.62,0.00016486,2]
[366189352,1750104667290,-741.8,0.00016486,2]
[366189353,1750104667299,-829.01,0.00016486,2]
[366189354,1750104667309,-490.0,0.00016486,2]
[366189355,1750104667318,-522.17,0.00016486,2]
[366189356,1750104667328,-490.0,0.00016486,2]
[366189357,1750104667337,-514.77,0.00016486,2]
[366189358,1750104667347,-563.82,0.00016486,2]
[366189359,1750104667356,-164.62597117,0.00016509,2]
[366189360,1750104667367,-1084.166367,0.00016531,2]
[366189361,1750104667376,-600.0,0.00016534,2]
[366189362,1750104667385,-300.0,0.00016539,2]
[366189363,1750104667395,-490.0,0.00016539,2]
[366189364,1750104667405,-490.0,0.00016539,2]
[366189365,1750104667414,-490.0,0.00016539,2]
[366189366,1750104667424,-490.0,0.00016539,2]
[366189367,1750104667433,-490.0,0.00016539,2]
[366189368,1750104667443,-508.24,0.0001654,2]
[366189369,1750104667452,-400.0,0.00016547,2]
[366189370,1750104667461,-1814.0,0.00016548,2]
[366189371,1750104667470,-252.74,0.0001657,2]
[366189372,1750104667479,-1000.0,0.00016585,2]
[366189373,1750104667489,-162.45031757,0.00016587,2]
[366189374,1750104667499,-200.65,0.00016595,2]
[366189375,1750104667508,-2598.03,0.000166,2]
[366189376,1750104667519,-4603.81558669,0.00016603,2]
[366189377,1750104667529,-150.0,0.00016603,2]
[366189378,1750104667539,-150.0,0.00016607,2]
[366189379,1750104667549,-150.0,0.00016607,2]
[366189380,1750104667559,-151.30590679,0.00016614,2]
[366189381,1750104667568,-500.69175608,0.00016614,2]
[366189382,1750104667578,-551.80627671,0.00016625,2]
[366189383,1750104667587,-500.0,0.00016629,2]
[366189384,1750104667597,-150.0,0.00016631,2]
[366189385,1750104667607,-150.0,0.00016638,2]
[366189386,1750104667617,-150.0,0.0001664,2]
[366189387,1750104667626,-181.75,0.00016648,2]
[366189388,1750104667636,-490.0,0.00016649,2]
[366189389,1750104667646,-490.0,0.00016649,2]
[366189390,1750104667655,-490.0,0.00016649,2]
[366189391,1750104667665,-506.16,0.00016649,2]
[366189392,1750104667674,-490.0,0.00016649,2]
[366189393,1750104667684,-490.0,0.00016649,2]
[366189394,1750104667693,-490.0,0.00016649,2]
[366189395,1750104667702,-490.0,0.00016649,2]
[366189396,1750104667712,-490.0,0.00016649,2]
[366189397,1750104667722,-490.0,0.00016649,2]
[366189398,1750104667731,-698.25,0.00016649,2]
[366189399,1750104667741,-490.0,0.00016649,2]
[366189400,1750104667750,-546.01,0.00016649,2]
[366189401,1750104667760,-490.0,0.00016649,2]
[366189402,1750104667770,-490.0,0.00016649,2]
[366189403,1750104667780,-527.47,0.00016649,2]
[366189404,1750104667789,-490.0,0.00016649,2]
[366189405,1750104667798,-490.0,0.00016649,2]
[366189406,1750104667809,-490.62,0.00016649,2]
[366189407,1750104667821,-490.0,0.00016649,2]
[366189408,1750104667830,-490.0,0.00016649,2]
[366189409,1750104667839,-500.13,0.00016649,2]
[366189410,1750104667850,-747.73,0.00016649,2]
[366189411,1750104667859,-490.0,0.00016649,2]
[366189412,1750104667868,-600.61,0.00016649,2]
[366189413,1750104667877,-506.11,0.00016649,2]
[366189414,1750104667887,-490.0,0.00016649,2]
[366189415,1750104667896,-601.49,0.00016649,2]
[366189416,1750104667906,-490.0,0.00016649,2]
[366189417,1750104667915,-857.07,0.00016649,2]
[366189418,1750104667924,-586.62,0.00016649,2]
[366189419,1750104667934,-490.0,0.00016649,2]
[366189420,1750104667943,-636.95,0.00016649,2]
[366189421,1750104667952,-490.0,0.00016649,2]
[366189422,1750104667961,-490.0,0.00016649,2]
[366189423,1750104667971,-490.0,0.00016649,2]
[366189424,1750104667981,-490.0,0.00016649,2]
[366189425,1750104667991,-707.95,0.00016649,2]
[366189426,1750104668000,-490.0,0.00016649,2]
[366189427,1750104668010,-565.53,0.00016649,2]
[366189428,1750104668019,-872.23,0.00016649,2]
[366189429,1750104668029,-490.0,0.00016649,2]
[366189430,1750104668038,-519.76,0.00016649,2]
[366189431,1750104668047,-490.0,0.00016649,2]
[366189432,1750104668057,-938.64,0.00016649,2]
[366189433,1750104668066,-490.0,0.00016649,2]
[366189434,1750104668075,-844.56,0.00016649,2]
[366189435,1750104668084,-490.0,0.00016649,2]
[366189436,1750104668093,-1137.0,0.00016649,2]
[366189437,1750104668103,-490.0,0.00016649,2]
[366189438,1750104668113,-7450.49,0.00016649,2]
[366189439,1750104668122,-645.18,0.00016649,2]
[366189440,1750104668131,-651.62,0.00016649,2]
[366189441,1750104668141,-1053.330119,0.00016649,2]
[366189442,1750104668151,-1874.42,0.00016649,2]
[366189443,1750104668160,-635.92,0.00016649,2]
[366189444,1750104668170,-927.76,0.00016649,2]
[366189445,1750104668179,-562.92,0.00016649,2]
[366189446,1750104668189,-816.34,0.00016649,2]
[366189447,1750104668199,-846.17,0.00016649,2]
[366189448,1750104668209,-574.26,0.00016649,2]
[366189449,1750104668219,-756.05,0.00016649,2]
[366189450,1750104668230,-490.0,0.00016649,2]
[366189451,1750104668238,-1597.18,0.00016649,2]
[366189452,1750104668248,-1713.39,0.00016649,2]
[366189453,1750104668258,-490.0,0.00016649,2]
[366189454,1750104668267,-490.0,0.00016649,2]
[366189455,1750104668276,-490.0,0.00016649,2]
[366189456,1750104668286,-490.0,0.00016649,2]
[366189457,1750104668295,-763.34,0.00016649,2]
[366189458,1750104668304,-1093.44,0.00016649,2]
[366189459,1750104668314,-690.44,0.00016649,2]
[366189460,1750104668323,-1941.86,0.00016649,2]
[366189461,1750104668332,-490.0,0.00016649,2]
[366189462,1750104668342,-1198.82,0.00016649,2]
[366189463,1750104668351,-491.05,0.00016649,2]
[366189464,1750104668361,-643.88,0.00016649,2]
[366189465,1750104668370,-501.49,0.00016649,2]
[366189466,1750104668381,-643.68,0.00016649,2]
[366189467,1750104668390,-490.0,0.00016649,2]
[366189468,1750104668399,-491.83,0.00016649,2]
[366189469,1750104668409,-2719.56,0.00016649,2]
[366189470,1750104668418,-490.0,0.00016649,2]
[366189471,1750104668428,-598.64,0.00016649,2]
[366189472,1750104668437,-166.132104,0.00016649,2]
[366189473,1750104668447,-830.48,0.00016649,2]
[366189474,1750104668457,-490.0,0.00016649,2]
[366189475,1750104668467,-490.0,0.00016649,2]
[366189476,1750104668477,-1357.86,0.00016649,2]
[366189477,1750104668486,-939.23,0.00016649,2]
[366189478,1750104668496,-1481.01,0.00016649,2]
[366189479,1750104668506,-574.31,0.00016649,2]
[366189480,1750104668515,-906.95,0.00016649,2]
[366189481,1750104668525,-490.0,0.00016649,2]
[366189482,1750104668534,-490.0,0.00016649,2]
[366189483,1750104668543,-1940.92,0.00016649,2]
[366189484,1750104668555,-490.0,0.00016649,2]
[366189485,1750104668565,-490.0,0.00016649,2]
[366189486,1750104668575,-490.0,0.00016649,2]
[366189487,1750104668584,-3585.03,0.00016649,2]
[366189488,1750104668594,-490.0,0.00016649,2]
[366189489,1750104668604,-490.0,0.00016649,2]
[366189490,1750104668614,-596.59,0.00016649,2]
[366189491,1750104668623,-490.0,0.00016649,2]
[366189492,1750104668632,-1302.19,0.00016649,2]
[366189493,1750104668643,-490.0,0.00016649,2]
[366189494,1750104668653,-498.26,0.00016649,2]
[366189495,1750104668663,-490.0,0.00016649,2]
[366189496,1750104668673,-1195.37,0.00016649,2]
[366189497,1750104668682,-520.64,0.00016649,2]
[366189498,1750104668692,-447.76656188,0.00016649,2]
[366189499,1750104668702,-3409.01,0.00016649,2]
[366189500,1750104668711,-490.0,0.00016649,2]
[366189501,1750104668721,-3486.61,0.00016649,2]
[366189502,1750104668731,-490.0,0.00016649,2]
[366189503,1750104668741,-490.0,0.00016649,2]
[366189504,1750104668750,-490.0,0.00016649,2]
[366189505,1750104668760,-576.66,0.00016649,2]
[366189506,1750104668770,-490.0,0.00016649,2]
[366189507,1750104668779,-1121.01,0.00016649,2]
[366189508,1750104668789,-490.0,0.00016649,2]
[366189509,1750104668798,-1539.45,0.00016649,2]
[366189510,1750104668809,-490.0,0.00016649,2]
[366189511,1750104668822,-8919.71,0.00016649,2]
[366189512,1750104668832,-2152.11,0.00016649,2]
[366189513,1750104668841,-490.0,0.00016649,2]
[366189514,1750104668852,-490.0,0.00016649,2]
[366189515,1750104668862,-490.0,0.00016649,2]
[366189516,1750104668872,-306.98274567,0.00016649,2]
[366189517,1750104668882,-490.0,0.00016649,2]
[366189518,1750104668894,-2373.98,0.00016649,2]
[366189519,1750104668904,-703.85,0.00016649,2]
[366189520,1750104668914,-490.0,0.00016649,2]
[366189521,1750104668923,-765.88,0.00016649,2]
[366189522,1750104668932,-668.88,0.00016649,2]
[366189523,1750104668942,-490.0,0.00016649,2]
[366189524,1750104668951,-490.0,0.00016649,2]
[366189525,1750104668961,-935.48,0.00016649,2]
[366189526,1750104668971,-1293.43,0.00016649,2]
[366189527,1750104668980,-768.66,0.00016649,2]
[366189528,1750104668990,-490.0,0.00016649,2]
[366189529,1750104668999,-1265.71,0.00016649,2]
[366189530,1750104669008,-2680.03,0.00016649,2]
[366189531,1750104669018,-799.33,0.00016649,2]
[366189532,1750104669028,-1123.57,0.00016649,2]
[366189533,1750104669037,-683.91,0.00016649,2]
[366189534,1750104669048,-680.87,0.00016649,2]
[366189535,1750104669057,-490.0,0.00016649,2]
[366189536,1750104669066,-490.0,0.00016649,2]
[366189537,1750104669076,-490.0,0.00016649,2]
[366189538,1750104669086,-496.21,0.00016649,2]
[366189539,1750104669095,-984.32,0.00016649,2]
[366189540,1750104669105,-490.0,0.00016649,2]
[366189541,1750104669115,-515.93,0.00016649,2]
[366189542,1750104669124,-490.0,0.00016649,2]
[366189543,1750104669134,-1265.19,0.00016649,2]
[366189544,1750104669143,-1368.0,0.00016649,2]
[366189545,1750104669154,-1507.29,0.00016649,2]
[366189546,1750104669164,-940.17,0.00016649,2]
[366189547,1750104669173,-151.0,0.00016649,2]
[366189548,1750104669183,-490.0,0.00016649,2]
[366189549,1750104669193,-539.37,0.00016649,2]
[366189550,1750104669202,-490.0,0.00016649,2]
[366189551,1750104669211,-490.0,0.00016649,2]
[366189552,1750104669221,-594.65,0.00016649,2]
[366189553,1750104669231,-574.72,0.00016649,2]
[366189554,1750104669241,-1606.7,0.00016649,2]
[366189555,1750104669251,-490.0,0.00016649,2]
[366189556,1750104669260,-7755.07,0.00016649,2]
[366189557,1750104669270,-490.0,0.00016649,2]
[366189558,1750104669279,-1681.53,0.00016649,2]
[366189559,1750104669289,-490.0,0.00016649,2]
[366189560,1750104669298,-490.0,0.00016649,2]
[366189561,1750104669307,-1900.07,0.00016649,2]
[366189562,1750104669317,-490.0,0.00016649,2]
[366189563,1750104669327,-516.77,0.00016649,2]
[366189564,1750104669336,-490.0,0.00016649,2]
[366189565,1750104669346,-166.132103,0.00016649,2]
[366189566,1750104669360,-2924.91,0.00016649,2]
[366189567,1750104669371,-1557.21,0.00016649,2]
[366189568,1750104669381,-2844.63,0.00016649,2]
[366189569,1750104669390,-490.0,0.00016649,2]
[366189570,1750104669401,-490.0,0.00016649,2]
[366189571,1750104669411,-490.0,0.00016649,2]
[366189572,1750104669421,-490.0,0.00016649,2]
[366189573,1750104669431,-576.19,0.00016649,2]
[366189574,1750104669443,-490.0,0.00016649,2]